bitfinex/quotes_SOLUSD_20251116
["timestamp","ask_amount","ask_price","bid_price","bid_amount"]
[1763308718122,0.55,137.56,137.51,12.04614056]
[1763308718123,10.03124294,137.53,137.51,4.77404741]
[1763308718353,10.03124294,137.52,137.51,4.77404741]
[1763308718516,10.58124294,137.52,137.51,4.77404741]
[1763308718810,10.33882769,137.52,137.51,4.77404741]
[1763308719012,11.02882769,137.52,137.51,4.77404741]
[1763308719321,10.33882769,137.52,137.51,4.77404741]
[1763308719720,0.55,137.55,137.51,12.7260946]
[1763308719919,0.55,137.53,137.51,4.77404741]
[1763308720121,0.55,137.53,137.51,14.80529035]
[1763308720424,0.55,137.53,137.51,4.77404741]
[1763308720626,10.33882769,137.52,137.51,4.77404741]
[1763308720928,20.37007063,137.52,137.51,4.77404741]
[1763308721120,20.37007063,137.52,137.51,3.62404741]
[1763308721351,20.37007063,137.52,137.51,1e-08]
[1763308721716,27.6417402,137.52,137.51,1e-08]
[1763308722022,17.61049726,137.52,137.51,1e-08]
[1763308722227,0.55,137.46,137.43,2.48509575]
[1763308722549,10.58124294,137.5,137.45,10.03124294]
[1763308722848,25.4278815,137.65,137.49,32.68244294]
[1763308723161,7.26480203,137.65,137.52,22.6512]
[1763308723436,10.03124294,137.56,137.51,10.03124294]
[1763308723631,10.03124294,137.56,137.52,7.27166957]
[1763308723803,10.03124294,137.58,137.53,10.03124294]
[1763308724007,9.78882769,137.64,137.53,10.03124294]
[1763308724008,9.78882769,137.63,137.53,0.7]
[1763308724235,10.03124294,137.54,137.49,0.7]
[1763308724407,10.03124294,137.53,137.49,0.7]
[1763308724832,10.03124294,137.53,137.46,48.11315256]
[1763308724833,19.82007063,137.51,137.46,0.7]
[1763308725026,10.03124294,137.49,137.46,0.7]
[1763308725238,10.03124294,137.51,137.46,10.73124294]
[1763308725423,9.78882769,137.58,137.47,10.03124294]
[1763308725759,10.03124294,137.56,137.5,22.6512]
[1763308726053,50.0,137.69,137.55,10.03124294]
[1763308726251,10.03124294,137.6,137.51,23.3512]
[1763308726436,29.98429446,137.68,137.51,23.3512]
[1763308726437,10.03124294,137.59,137.54,10.03124294]
[1763308726745,31.21261635,137.68,137.55,10.03124294]
[1763308726746,4.56302777,137.66,137.55,10.03124294]
[1763308726910,10.03124294,137.6,137.55,10.03124294]
[1763308727117,10.03124294,137.62,137.57,10.03124294]
[1763308727418,10.03124294,137.62,137.56,0.7]
[1763308727419,4.56302777,137.65,137.61,10.03124294]
[1763308727619,14.59427071,137.65,137.62,0.7]
[1763308727836,14.59427071,137.64,137.59,0.7]
[1763308728026,10.03124294,137.65,137.6,10.03124294]
[1763308728218,10.03124294,137.65,137.57,22.6512]
[1763308728219,7.26386643,137.67,137.58,10.03124294]
[1763308728413,10.03124294,137.62,137.58,0.7]
[1763308729036,10.03124294,137.59,137.53,0.7]
[1763308729337,10.03124294,137.56,137.53,0.7]
[1763308729638,10.03124294,137.55,137.51,7.27219838]
[1763308730020,10.03124294,137.55,137.52,0.7]
[1763308730221,10.03124294,137.56,137.52,0.7]
[1763308730434,10.03124294,137.53,137.48,0.7]
[1763308730643,9.78882769,137.58,137.48,0.7]
[1763308730825,10.03124294,137.53,137.48,10.73124294]
[1763308731021,10.03124294,137.52,137.48,0.7]
[1763308731641,10.03124294,137.49,137.44,0.7]
[1763308731842,9.78882769,137.56,137.44,10.73124294]
[1763308732140,10.03124294,137.51,137.46,10.03124294]
[1763308732343,50.61422683,137.56,137.45,0.7]
[1763308732527,10.03124294,137.48,137.45,0.7]
[1763308732736,10.03124294,137.49,137.45,0.7]
[1763308734156,18.17383761,137.57,137.46,10.03124294]
[1763308734340,10.03124294,137.53,137.49,10.03124294]
[1763308734534,10.03124294,137.54,137.45,48.81499716]
[1763308734735,10.03124294,137.54,137.49,10.03124294]
[1763308735154,10.03124294,137.54,137.5,0.7]
[1763308735350,9.78882769,137.56,137.5,0.7]
[1763308735540,9.78882769,137.56,137.45,29.92656501]
[1763308735541,10.03124294,137.51,137.46,10.73124294]
[1763308735726,10.03124294,137.51,137.48,7.97365214]
[1763308735922,10.03124294,137.52,137.48,7.97365214]
[1763308736127,7.27075063,137.54,137.48,7.97365214]
[1763308736349,10.03124294,137.52,137.48,7.97365214]
[1763308736548,7.27075063,137.54,137.44,0.7]
[1763308736549,10.03124294,137.49,137.44,0.7]
[1763308736737,10.03124294,137.48,137.44,0.7]
[1763308736927,10.03124294,137.49,137.44,10.73124294]
[1763308737122,10.03124294,137.49,137.45,0.7]
[1763308737360,10.03124294,137.47,137.43,2.48509575]
[1763308737539,9.78882769,137.51,137.43,2.48509575]
[1763308737740,10.03124294,137.45,137.43,2.48509575]
[1763308737944,10.03124294,137.44,137.43,2.48509575]
[1763308738256,10.03124294,137.44,137.28,3.7653854]
[1763308738454,9.78882769,137.4,137.31,8.08278068]
[1763308738664,9.78882769,137.4,137.31,0.1]
[1763308738827,4.59813998,137.41,137.31,0.1]
[1763308738828,9.78882769,137.38,137.31,0.1]
[1763308739029,3.76742103,137.41,137.32,0.7]
[1763308739228,32.44002769,137.43,137.32,0.7]
[1763308739426,10.03124294,137.36,137.32,0.7]
[1763308739667,4.60327782,137.4,137.33,0.7]
[1763308739831,14.39748958,137.42,137.33,7.98157875]
[1763308740026,14.39748958,137.42,137.35,10.03124294]
[1763308740027,9.78882769,137.42,137.35,10.03124294]
[1763308740238,4.61821295,137.42,137.37,10.03124294]
[1763308740579,9.78882769,137.46,137.39,10.03124294]
[1763308740742,4.61996206,137.47,137.38,0.7]
[1763308740939,93.72391529,137.48,137.38,0.7]
[1763308741177,93.72391529,137.48,137.33,25.48590409]
[1763308741178,9.78882769,137.46,137.36,0.7]
[1763308741477,14.40878975,137.47,137.33,0.7]
[1763308741478,10.03124294,137.38,137.33,0.7]
[1763308741773,9.78882769,137.41,137.36,10.03124294]
[1763308741947,7.27444709,137.47,137.35,25.48234437]
[1763308742136,7.27444709,137.47,137.38,10.03124294]
[1763308742137,10.03124294,137.43,137.38,10.03124294]
[1763308742332,11.88952656,137.47,137.35,25.48234437]
[1763308742333,19.82007063,137.44,137.35,25.48234437]
[1763308742549,10.03124294,137.4,137.34,7.28113119]
[1763308742749,9.78882769,137.45,137.36,10.03124294]
[1763308742940,9.78882769,137.43,137.33,10.03124294]
[1763308743144,10.03124294,137.37,137.32,10.03124294]
[1763308743342,4.61267659,137.43,137.32,0.7]
[1763308743343,9.78882769,137.41,137.32,0.7]
[1763308743561,9.78882769,137.38,137.34,10.03124294]
[1763308743767,10.03124294,137.38,137.33,10.03124294]
[1763308743941,78.44254966,137.44,137.32,0.7]
[1763308743942,4.61053098,137.42,137.34,10.03124294]
[1763308744143,4.61053098,137.42,137.32,7.9818511]
[1763308744144,7.27703686,137.42,137.32,26.18750213]
[1763308744346,9.78882769,137.41,137.34,10.03124294]
[1763308744562,5.79134966,137.47,137.4,10.03124294]
[1763308744864,10.03124294,137.53,137.45,22.6512]
[1763308745082,10.03124294,137.48,137.43,10.73124294]
[1763308745237,4.61219568,137.52,137.47,10.03124294]
[1763308745443,10.03124294,137.53,137.48,10.73124294]
[1763308745667,10.03124294,137.52,137.47,10.03124294]
[1763308745870,7.27120563,137.53,137.47,7.97395559]
[1763308746182,7.27120563,137.53,137.32,36.31590525]
[1763308746183,10.03124294,137.53,137.48,0.7]
[1763308746543,9.78882769,137.48,137.4,0.7]
[1763308746739,9.78882769,137.48,137.42,10.03124294]
[1763308746740,14.40392356,137.48,137.42,10.03124294]
[1763308746939,5.79134966,137.52,137.45,10.03124294]
[1763308746940,9.78882769,137.52,137.45,10.03124294]
[1763308747143,9.78882769,137.52,137.48,10.03124294]
[1763308747338,4.61526835,137.52,137.47,10.03124294]
[1763308747560,9.78882769,137.52,137.47,10.03124294]
[1763308747793,14.40409604,137.52,137.48,0.7]
[1763308747944,14.40409604,137.52,137.46,10.03124294]
[1763308747945,4.61526835,137.51,137.46,10.03124294]
[1763308748286,4.61526835,137.51,137.46,10.73124294]
[1763308748470,4.61526835,137.51,137.48,10.03124294]
[1763308748650,4.61526835,137.51,137.47,0.7]
[1763308748850,14.40409604,137.53,137.48,10.03124294]
[1763308749059,4.61526835,137.52,137.47,10.73124294]
[1763308749446,24.43533898,137.51,137.45,10.03124294]
[1763308749646,14.64651129,137.5,137.44,0.7]
[1763308749857,21.91948534,137.5,137.44,10.73124294]
[1763308750052,4.61526835,137.49,137.44,7.97587309]
[1763308750275,4.61526835,137.49,137.44,7.27587309]
[1763308750446,11.92443913,137.55,137.48,10.03124294]
[1763308750447,5.79134966,137.55,137.48,10.03124294]
[1763308750647,50.71,137.58,137.46,22.6512]
[1763308750648,0.71,137.58,137.46,22.6512]
[1763308750849,10.03124294,137.56,137.46,22.6512]
[1763308751072,9.78882769,137.56,137.48,10.03124294]
[1763308751277,10.03124294,137.53,137.44,22.6512]
[1763308751469,9.78882769,137.54,137.44,22.6512]
[1763308751671,10.03124294,137.5,137.39,0.02]
[1763308751968,17.30291251,137.52,137.46,10.03124294]
[1763308752167,10.03124294,137.52,137.46,10.03124294]
[1763308752364,0.71,137.57,137.51,10.03124294]
[1763308752567,0.71,137.57,137.53,10.03124294]
[1763308752774,0.71,137.57,137.47,22.6712]
[1763308753063,0.71,137.57,137.51,10.03124294]
[1763308753064,10.03124294,137.56,137.51,10.03124294]
[1763308753275,9.78882769,137.56,137.48,22.6512]
[1763308753474,0.71,137.55,137.48,22.6512]
[1763308753673,0.71,137.55,137.46,0.02]
[1763308753674,10.01120294,137.54,137.49,10.03124294]
[1763308753870,0.71,137.55,137.51,10.03124294]
[1763308754066,0.71,137.55,137.52,10.03124294]
[1763308754653,0.71,137.55,137.51,17.30323867]
[1763308754859,0.71,137.55,137.49,7.27325623]
[1763308755068,0.71,137.55,137.51,10.03124294]
[1763308755388,0.71,137.59,137.54,10.03124294]
[1763308755558,0.71,137.59,137.55,10.03124294]
[1763308755952,0.71,137.59,137.5,22.6712]
[1763308755953,10.03124294,137.58,137.54,10.03124294]
[1763308756198,10.03124294,137.58,137.46,0.02]
[1763308756376,10.03124294,137.56,137.51,10.03124294]
[1763308756557,0.71,137.57,137.5,10.03124294]
[1763308756758,10.03124294,137.53,137.49,10.03124294]
[1763308756956,10.03124294,137.54,137.49,10.03124294]
[1763308757374,0.71,137.53,137.41,0.67]
[1763308757578,0.71,137.53,137.43,10.70124294]
[1763308757855,7.51666336,137.59,137.43,10.70124294]
[1763308757856,0.63,137.57,137.47,10.03124294]
[1763308758070,1.99999999,137.61,137.5,10.03124294]
[1763308758071,10.03124294,137.55,137.5,10.03124294]
[1763308758276,0.63,137.6,137.4,7.27802037]
[1763308758277,18.80087178,137.59,137.4,7.27802037]
[1763308758459,10.03124294,137.5,137.45,10.03124294]
[1763308758662,10.03124294,137.49,137.44,10.03124294]
[1763308759080,10.03124294,137.49,137.45,0.67]
[1763308759271,10.03124294,137.5,137.45,10.70124294]
[1763308759463,0.63,137.55,137.46,10.03124294]
[1763308759685,10.03124294,137.51,137.46,10.03124294]
[1763308759883,22.6512,137.58,137.44,22.6512]
[1763308759884,10.03124294,137.53,137.48,10.03124294]
[1763308760059,7.26944793,137.57,137.49,7.27325623]
[1763308760261,10.03124294,137.55,137.5,10.03124294]
[1763308760585,10.03124294,137.54,137.49,36.15763976]
[1763308760892,7.26810458,137.59,137.5,10.03124294]
[1763308761063,10.03124294,137.54,137.5,10.70124294]
[1763308761403,7.26810458,137.59,137.49,25.45639682]
[1763308761404,0.63,137.58,137.49,10.70124294]
[1763308761688,0.63,137.58,137.49,0.67]
[1763308761884,10.03124294,137.53,137.49,10.70124294]
[1763308762081,10.03124294,137.53,137.46,22.6512]
[1763308762082,7.2695551,137.56,137.48,17.30489513]
[1763308762282,7.2695551,137.56,137.45,7.27537286]
[1763308762283,10.03124294,137.5,137.45,7.27537286]
[1763308762469,10.03124294,137.47,137.43,7.27631018]
[1763308762684,6.44215796,137.59,137.46,32.68244294]
[1763308762884,10.03124294,137.54,137.49,10.03124294]
[1763308763096,0.63,137.58,137.47,0.67]
[1763308763294,0.63,137.58,137.47,10.70124294]
[1763308763577,10.03124294,137.53,137.47,0.67]
[1763308763787,10.03124294,137.53,137.48,10.03124294]
[1763308763987,10.03124294,137.52,137.48,17.30502821]
[1763308764176,7.27062435,137.54,137.48,17.30502821]
[1763308764383,10.03124294,137.53,137.49,10.03124294]
[1763308764583,7.26920494,137.57,137.51,10.03124294]
[1763308764781,10.03124294,137.56,137.51,10.70124294]
[1763308764976,10.03124294,137.58,137.52,0.67]
[1763308765294,10.03124294,137.58,137.54,10.03124294]
[1763308765691,10.03124294,137.57,137.52,0.67]
[1763308766005,10.03124294,137.57,137.53,17.30238378]
[1763308766311,10.03124294,137.57,137.53,10.70124294]
[1763308766513,25.43419809,137.61,137.49,23.3212]
[1763308766514,10.03124294,137.56,137.49,23.3212]
[1763308766700,10.03124294,137.55,137.5,10.70124294]
[1763308766897,10.03124294,137.55,137.51,10.03124294]
[1763308767207,61.76876679,137.61,137.51,0.67]
[1763308767208,26.06419809,137.61,137.51,0.67]
[1763308767508,26.06419809,137.61,137.53,10.03124294]
[1763308767509,10.03124294,137.57,137.53,10.03124294]
[1763308767681,0.63,137.61,137.54,0.67]
[1763308767880,7.89538857,137.64,137.54,0.67]
[1763308768200,10.03124294,137.6,137.55,7.2700836]
[1763308768508,0.63,137.63,137.54,0.67]
[1763308768707,7.26494992,137.65,137.54,7.9405938]
[1763308768877,10.03124294,137.61,137.54,26.11712426]
[1763308769078,0.2,137.66,137.55,0.67]
[1763308769283,7.4644696,137.66,137.58,10.03124294]
[1763308769513,7.4644696,137.66,137.55,0.67]
[1763308769514,10.03124294,137.6,137.55,0.67]
[1763308769688,10.03124294,137.6,137.56,10.03124294]
[1763308769888,10.03124294,137.57,137.51,0.67]
[1763308770091,7.26701078,137.61,137.54,10.03124294]
[1763308770307,0.63,137.63,137.55,10.03124294]
[1763308770481,0.2,137.66,137.57,10.03124294]
[1763308770482,0.83,137.66,137.57,10.03124294]
[1763308770686,10.03124294,137.63,137.58,10.03124294]
[1763308771007,0.83,137.66,137.59,10.03124294]
[1763308771008,8.09438541,137.66,137.59,10.03124294]
[1763308771313,10.03124294,137.64,137.59,10.70124294]
[1763308771480,10.03124294,137.64,137.6,10.03124294]
[1763308771804,0.2,137.66,137.6,10.70124294]
[1763308772012,0.83,137.69,137.65,10.03124294]
[1763308772013,0.2,137.69,137.65,10.03124294]
[1763308772214,0.2,137.69,137.64,22.6512]
[1763308772423,0.2,137.69,137.62,23.3212]
[1763308772634,10.03124294,137.66,137.61,10.03124294]
[1763308772777,0.71,137.68,137.6,0.67]
[1763308773121,8.88747291,137.64,137.6,0.67]
[1763308773296,0.71,137.68,137.56,0.67]
[1763308773492,8.88747291,137.63,137.58,8.88747291]
[1763308773716,0.71,137.67,137.57,9.55747291]
[1763308773918,8.88747291,137.62,137.58,8.88747291]
[1763308774081,8.88747291,137.62,137.57,16.82615075]
[1763308774594,8.88747291,137.62,137.57,15.82615075]
[1763308774809,0.71,137.65,137.57,8.88747291]
[1763308774983,8.88747291,137.61,137.57,16.1564314]
[1763308775314,8.88747291,137.62,137.57,7.26895849]
[1763308775614,0.71,137.65,137.56,8.88747291]
[1763308775615,8.88747291,137.61,137.56,8.88747291]
[1763308775823,8.88747291,137.58,137.53,8.88747291]
[1763308775978,0.71,137.64,137.49,9.78882769]
[1763308776181,55.81215796,137.7,137.49,9.78882769]
[1763308776182,0.71,137.65,137.55,22.6512]
[1763308776435,0.71,137.65,137.58,8.88747291]
[1763308776597,8.88747291,137.62,137.56,0.67]
[1763308776791,0.71,137.65,137.56,0.67]
[1763308776992,8.88747291,137.61,137.56,9.55747291]
[1763308777211,18.6763006,137.64,137.5,0.67]
[1763308777411,8.88747291,137.57,137.51,0.67]
[1763308777586,8.88747291,137.56,137.51,9.55747291]
[1763308777991,8.88747291,137.56,137.52,0.67]
[1763308778211,8.88747291,137.56,137.52,7.94117943]
[1763308778797,6.42642136,137.56,137.52,7.94117943]
[1763308779497,50.0,137.68,137.54,22.6512]
[1763308779687,50.0,137.68,137.48,6.42642136]
[1763308779688,6.42642136,137.55,137.49,0.67]
[1763308779893,9.78882769,137.62,137.53,6.42642136]
[1763308780192,0.71,137.61,137.55,13.69650496]
[1763308780399,6.42642136,137.59,137.55,13.69650496]
[1763308780602,7.97723335,137.61,137.55,13.69650496]
[1763308780806,6.42642136,137.59,137.55,6.42642136]
[1763308781122,25.4345177,137.61,137.49,22.6512]
[1763308781310,12.85284272,137.5,137.35,0.67]
[1763308781507,25.70568544,137.55,137.35,0.67]
[1763308781508,6.42642136,137.4,137.35,0.67]
[1763308781716,9.78882769,137.44,137.35,0.67]
[1763308781894,6.42642136,137.41,137.32,0.67]
[1763308782094,6.42642136,137.37,137.32,0.67]
[1763308782291,6.42642136,137.41,137.31,0.1]
[1763308782292,6.42642136,137.36,137.31,0.1]
[1763308782511,18.19785247,137.38,137.31,0.77]
[1763308782702,7.27855011,137.39,137.31,0.77]
[1763308782703,9.78882769,137.37,137.31,0.1]
[1763308783024,9.78882769,137.41,137.32,0.67]
[1763308783213,9.78882769,137.4,137.32,0.67]
[1763308783525,9.78882769,137.41,137.32,0.67]
[1763308783911,6.42642136,137.38,137.32,7.09642136]
[1763308784226,6.42642136,137.37,137.33,0.67]
[1763308784435,6.42642136,137.35,137.31,0.1]
[1763308784732,6.42642136,137.36,137.31,7.19642136]
[1763308784919,7.27802037,137.4,137.31,0.77]
[1763308785100,22.6512,137.43,137.32,7.09642136]
[1763308785297,6.42642136,137.41,137.36,6.42642136]
[1763308785492,6.42642136,137.4,137.33,0.67]
[1763308785730,6.42642136,137.38,137.32,23.3212]
[1763308785916,6.42642136,137.38,137.33,6.42642136]
[1763308786120,22.6512,137.44,137.33,0.67]
[1763308786430,13.70027807,137.48,137.37,6.42642136]
[1763308786723,13.70027807,137.48,137.36,25.48048921]
[1763308786724,4.63687746,137.47,137.38,7.09642136]
[1763308786923,75.70568544,137.55,137.41,6.42642136]
[1763308786924,5.81215796,137.54,137.41,6.42642136]
[1763308787121,4.63827857,137.54,137.44,6.42642136]
[1763308787298,6.42642136,137.48,137.43,7.09642136]
[1763308787696,6.42642136,137.49,137.44,7.09642136]
[1763308788102,6.42642136,137.46,137.42,0.67]
[1763308788315,6.42642136,137.47,137.42,7.94661477]
[1763308788502,6.42642136,137.47,137.42,14.37303613]
[1763308788704,6.42642136,137.47,137.43,0.67]
[1763308789026,6.42642136,137.48,137.43,0.67]
[1763308789200,6.42642136,137.47,137.43,0.67]
[1763308789820,6.42642136,137.48,137.43,7.09642136]
[1763308790319,6.42642136,137.48,137.44,0.67]
[1763308790523,7.27216273,137.52,137.44,14.37213838]
[1763308790729,6.42642136,137.52,137.47,6.42642136]
[1763308791106,6.42642136,137.52,137.47,0.67]
[1763308791305,6.42642136,137.5,137.47,0.67]
[1763308791505,7.26849832,137.58,137.47,0.67]
[1763308791741,6.42642136,137.48,137.42,0.67]
[1763308791945,6.42642136,137.48,137.39,0.67]
[1763308791946,6.42642136,137.45,137.39,0.67]
[1763308792100,6.42642136,137.47,137.4,0.67]
[1763308792297,9.78882769,137.49,137.42,6.42642136]
[1763308792500,32.44002769,137.53,137.44,6.42642136]
[1763308792756,4.64525085,137.52,137.42,0.67]
[1763308793049,14.43448015,137.53,137.42,0.67]
[1763308793510,6.42642136,137.51,137.46,6.42642136]
[1763308793711,6.42642136,137.49,137.41,31.89763888]
[1763308793915,9.78882769,137.53,137.41,31.89763888]
[1763308793916,4.64733741,137.52,137.44,7.09642136]
[1763308794128,6.42642136,137.49,137.45,6.42642136]
[1763308794444,6.42642136,137.51,137.47,6.42642136]
[1763308794621,6.42642136,137.51,137.47,0.67]
[1763308794824,9.78882769,137.54,137.48,7.09642136]
[1763308795026,6.42642136,137.53,137.48,7.09642136]
[1763308795235,4.65081589,137.55,137.49,7.09642136]
[1763308795538,6.42642136,137.54,137.49,7.09642136]
[1763308795925,9.78882769,137.55,137.5,0.67]
[1763308796126,6.42642136,137.54,137.5,0.67]
[1763308796329,6.42642136,137.52,137.46,7.27479903]
[1763308796526,6.42642136,137.53,137.48,6.42642136]
[1763308796828,6.42642136,137.55,137.51,6.42642136]
[1763308797012,6.42642136,137.55,137.47,0.67]
[1763308797013,6.42642136,137.58,137.48,6.42642136]
[1763308797211,6.42642136,137.62,137.57,6.42642136]
[1763308797412,6.42642136,137.62,137.58,7.09642136]
[1763308797712,6.42642136,137.62,137.52,22.6512]
[1763308797713,5.80662381,137.66,137.49,22.6512]
[1763308797917,7.91722842,137.68,137.47,1.99999999]
[1763308797918,10.46145777,137.68,137.63,6.42642136]
[1763308798147,6.42642136,137.66,137.62,6.42642136]
[1763308798349,6.42642136,137.66,137.61,6.42642136]
[1763308798653,4.65483396,137.68,137.62,6.42642136]
[1763308798967,6.42642136,137.64,137.6,0.67]
[1763308799531,6.42642136,137.64,137.6,7.09642136]
[1763308799730,6.42642136,137.65,137.6,7.09642136]
[1763308800047,4.65483396,137.67,137.61,6.42642136]
[1763308800479,4.65483396,137.67,137.58,25.43964736]
[1763308800480,7.26333948,137.68,137.58,7.26840154]
[1763308800670,6.42642136,137.65,137.6,6.42642136]
[1763308800988,4.65423586,137.66,137.6,6.42642136]
[1763308801281,6.42642136,137.65,137.61,6.42642136]
[1763308801494,4.65423586,137.66,137.55,22.6512]
[1763308801778,4.65423586,137.66,137.59,0.67]
[1763308802350,9.78882769,137.67,137.59,0.67]
[1763308802576,8.34882769,137.67,137.66,6.42642136]
[1763308802779,0.2,137.69,137.66,6.42642136]
[1763308802956,0.2,137.69,137.63,22.6512]
[1763308803150,0.2,137.69,137.56,22.6512]
[1763308803583,0.2,137.69,137.45,55.39992914]
[1763308803584,0.92,137.69,137.6,22.6512]
[1763308803886,6.42642136,137.67,137.63,6.42642136]
[1763308804093,6.42642136,137.67,137.54,1.99999999]
[1763308804094,6.42642136,137.64,137.48,68.2535962]
[1763308804252,50.72,137.68,137.56,6.42642136]
[1763308804452,0.72,137.67,137.56,25.44344285]
[1763308804679,6.42642136,137.67,137.63,6.42642136]
[1763308804877,6.42642136,137.64,137.56,7.2695551]
[1763308805096,6.42642136,137.64,137.6,6.42642136]
[1763308805252,6.42642136,137.64,137.56,7.2695551]
[1763308805253,6.42642136,137.63,137.56,25.44344285]
[1763308805457,6.42642136,137.59,137.46,25.46195256]
[1763308805656,6.42642136,137.57,137.46,7.27484359]
[1763308805855,6.42642136,137.54,137.44,7.27590221]
[1763308806174,6.42642136,137.53,137.48,6.42642136]
[1763308806375,6.42642136,137.53,137.45,22.6512]
[1763308806376,0.72,137.55,137.45,22.6512]
[1763308806552,50.0,137.64,137.51,6.42642136]
[1763308806750,6.42642136,137.57,137.52,6.42642136]
[1763308807068,0.72,137.63,137.56,6.42642136]
[1763308807385,6.42642136,137.62,137.53,22.6512]
[1763308807549,6.42642136,137.58,137.54,6.42642136]
[1763308807759,6.42642136,137.58,137.51,22.6512]
[1763308807760,6.42642136,137.6,137.55,6.42642136]
[1763308807963,6.42642136,137.61,137.57,6.42642136]
[1763308808512,0.72,137.61,137.57,6.42642136]
[1763308808697,7.14642136,137.61,137.57,6.42642136]
[1763308808866,0.72,137.61,137.57,6.42642136]
[1763308809069,27.95190548,137.65,137.59,6.42642136]
[1763308809070,6.42642136,137.64,137.59,6.42642136]
[1763308809267,6.42642136,137.6,137.48,24.61088455]
[1763308809483,6.42642136,137.57,137.51,22.6512]
[1763308809793,6.42642136,137.56,137.51,6.42642136]
[1763308810002,0.72,137.65,137.55,12.85284272]
[1763308810207,0.2,137.69,137.48,1.99999999]
[1763308810208,0.72,137.64,137.48,1.99999999]
[1763308810370,9.78882769,137.63,137.47,25.46010037]
[1763308810704,9.78882769,137.61,137.51,7.27219838]
[1763308810879,9.78882769,137.61,137.48,18.18407628]
[1763308811066,9.78882769,137.59,137.44,9.78882769]
[1763308811271,0.72,137.6,137.54,6.42642136]
[1763308811477,0.72,137.6,137.5,22.6512]
[1763308811665,6.42642136,137.56,137.47,22.6512]
[1763308811896,6.42642136,137.55,137.44,9.78882769]
[1763308812076,31.85877129,137.62,137.41,6.42642136]
[1763308812077,9.78882769,137.57,137.5,6.42642136]
[1763308812279,9.78882769,137.57,137.41,6.42642136]
[1763308812280,0.72,137.57,137.51,6.42642136]
[1763308812479,7.26638569,137.62,137.53,6.42642136]
[1763308812711,0.72,137.6,137.56,6.42642136]
[1763308812883,8.8912243,137.62,137.57,8.8912243]
[1763308813068,0.72,137.61,137.57,8.8912243]
[1763308813266,7.26374664,137.67,137.55,25.44529261]
[1763308813267,8.8912243,137.63,137.55,25.44529261]
[1763308813466,0.72,137.62,137.55,25.44529261]
[1763308813773,8.8912243,137.64,137.6,8.8912243]
[1763308813982,8.8912243,137.66,137.61,8.8912243]
[1763308814202,8.8912243,137.65,137.61,8.8912243]
[1763308814393,9.6012243,137.65,137.61,8.8912243]
[1763308814603,8.8912243,137.63,137.57,7.26902667]
[1763308814768,9.6012243,137.64,137.6,8.8912243]
[1763308814973,9.6012243,137.63,137.59,8.8912243]
[1763308815181,0.71,137.67,137.62,8.8912243]
[1763308815382,7.46298086,137.69,137.58,22.6512]
[1763308815383,8.8912243,137.65,137.58,22.6512]
[1763308815588,8.8912243,137.64,137.58,22.6512]
[1763308815808,8.8912243,137.63,137.57,25.44159336]
[1763308816008,0.68,137.67,137.57,7.26902667]
[1763308816314,9.5712243,137.66,137.61,8.8912243]
[1763308816507,0.68,137.66,137.59,8.8912243]
[1763308816703,8.8912243,137.63,137.53,18.17687078]
[1763308817019,8.8912243,137.61,137.56,8.8912243]
[1763308817182,25.42519128,137.66,137.54,16.16183648]
[1763308817183,8.8912243,137.59,137.54,16.16183648]
[1763308817380,9.78882769,137.64,137.54,25.44714264]
[1763308817609,0.68,137.63,137.57,22.6512]
[1763308817917,9.5712243,137.63,137.58,8.8912243]
[1763308818217,35.40866699,137.69,137.57,22.6512]
[1763308818218,0.68,137.66,137.57,22.6512]
[1763308818515,0.68,137.66,137.62,8.8912243]
[1763308818720,8.8912243,137.68,137.64,7.26532984]
[1763308818879,0.68,137.67,137.64,16.15655414]
[1763308819082,9.0912243,137.69,137.66,8.8912243]
[1763308819083,0.2,137.69,137.66,8.8912243]
[1763308819312,0.2,137.69,137.64,25.42865445]
[1763308819510,0.2,137.69,137.68,8.8912243]
[1763308819894,0.2,137.69,137.67,8.8912243]
[1763308820088,0.88,137.69,137.66,8.8912243]
[1763308820424,9.7712243,137.69,137.64,16.15655414]
[1763308820622,8.8912243,137.65,137.54,36.35306092]
[1763308820779,8.8912243,137.65,137.6,8.8912243]
[1763308820978,0.88,137.69,137.64,8.8912243]
[1763308821284,0.2,137.69,137.62,22.6512]
[1763308821488,0.2,137.69,137.56,1.99999999]
[1763308821793,0.88,137.69,137.56,1.99999999]
[1763308822108,0.88,137.69,137.61,22.6512]